bitfinex-derivatives/quotes_SOLF0:USTF0_20250505
["timestamp","ask_amount","ask_price","bid_price","bid_amount"]
[1746416969777,6.8986,144.95,144.92,6.8998]
[1746416971580,6.8982,144.96,144.9,124.04]
[1746416971789,24.04,144.98,144.91,4.1343]
[1746416972184,6.8978,144.97,144.91,6.2446]
[1746416972391,24.04,145.01,144.91,6.2446]
[1746416972591,6.897,144.99,144.91,6.2446]
[1746416972883,24.04,145.01,144.95,6.8983]
[1746416973082,6.897,144.99,144.95,6.8983]
[1746416973286,6.897,144.99,144.94,24.04]
[1746416974289,6.897,144.99,144.96,6.8979]
[1746416974989,6.8963,145.0,144.97,6.8976]
[1746416975181,24.04,145.01,144.97,6.8976]
[1746416976189,6.8962,145.0,144.97,6.8976]
[1746416976389,24.04,145.01,144.97,6.8976]
[1746416976788,30.9361,145.01,144.97,6.8976]
[1746416978691,6.8963,145.0,144.97,6.8976]
[1746416979892,24.04,145.01,144.94,24.04]
[1746416980093,5.25087222,145.0,144.94,24.04]
[1746416981193,6.8976,144.97,144.94,30.9387]
[1746416981898,6.8973,144.98,144.94,30.9387]
[1746416984595,6.8977,144.97,144.94,30.9387]
[1746416985396,6.8977,144.97,144.94,24.04]
[1746416986400,6.8981,144.96,144.94,24.04]
[1746416986590,6.8981,144.96,144.92,6.8998]
[1746416986791,6.8981,144.96,144.91,30.2846]
[1746416987793,6.8981,144.96,144.93,6.8991]
[1746416988097,5.25087222,145.0,144.91,30.2846]
[1746416989195,6.8979,144.97,144.94,6.8989]
[1746416992799,6.8979,144.97,144.95,6.8985]
[1746416995501,6.8973,144.98,144.95,6.8985]
[1746416998706,6.8973,144.98,144.94,6.8988]
[1746416999808,6.8979,144.97,144.93,6.8993]
[1746417000106,6.8979,144.97,144.91,30.2846]
[1746417001108,6.8979,144.97,144.94,6.899]
[1746417001810,6.8982,144.96,144.93,6.8994]
[1746417002009,5.25087222,145.0,144.91,30.2846]
[1746417002203,7.37277222,145.0,144.91,28.1743]
[1746417002606,9.45527222,145.0,144.91,26.0274]
[1746417002805,9.45527222,145.0,144.9,100.0]
[1746417003104,6.8993,144.94,144.9,106.9006]
[1746417004106,6.8993,144.94,144.91,6.9004]
[1746417004313,6.8987,144.95,144.91,6.9004]
[1746417007112,24.04,144.96,144.92,6.8997]
[1746417007812,30.9382,144.96,144.92,6.8997]
[1746417017728,6.8986,144.95,144.92,6.8997]
[1746417018024,6.8986,144.95,144.91,6.9003]
[1746417019123,6.8986,144.95,144.92,6.8999]
[1746417019729,34.29759864,144.96,144.93,6.8994]
[1746417023328,34.29759864,144.96,144.92,6.8998]
[1746417027633,6.8986,144.95,144.92,6.8998]
[1746417030438,6.8986,144.95,144.91,6.9003]
[1746417030635,6.8996,144.93,144.9,124.02]
[1746417030936,6.8996,144.93,144.9,100.0]
[1746417034535,6.9,144.92,144.9,100.0]
[1746417034739,10.25939864,144.92,144.9,100.0]
[1746417035343,6.9004,144.91,144.9,100.0]
[1746417037439,10.25979864,144.91,144.9,100.0]
[1746417040249,3.35939864,144.93,144.9,100.0]
[1746417041151,10.25909864,144.93,144.9,100.0]
[1746417041545,6.8997,144.93,144.9,106.9007]
[1746417041747,6.8992,144.94,144.9,106.9007]
[1746417043252,6.8995,144.93,144.9,106.9007]
[1746417044252,6.8995,144.93,144.9,100.0]
[1746417047256,6.8992,144.94,144.9,106.9008]
[1746417048253,6.8995,144.93,144.9,106.9008]
[1746417050046,24.04,144.96,144.9,106.9008]
[1746417050350,24.04,144.96,144.9,100.0]
[1746417051054,6.899,144.95,144.91,6.9002]
[1746417051255,24.04,144.96,144.91,6.9002]
[1746417052257,6.8991,144.94,144.91,6.9002]
[1746417053554,6.8991,144.94,144.9,106.9007]
[1746417054960,6.8991,144.94,144.91,6.9002]
[1746417055956,6.8991,144.94,144.9,106.9008]
[1746417057360,6.8991,144.94,144.91,6.9004]
[1746417061065,6.8995,144.93,144.9,106.9007]
[1746417062364,6.8992,144.94,144.9,106.9007]
[1746417064166,6.8986,144.95,144.91,6.9002]
[1746417064666,6.8986,144.95,144.9,100.0]
[1746417065967,27.39915771,144.96,144.9,100.0]
[1746417066458,3.35915771,144.94,144.9,100.0]
[1746417066664,3.35915771,144.92,144.9,100.0]
[1746417067271,6.9004,144.91,144.9,100.0]
[1746417067463,3.35915771,144.92,144.9,100.0]
[1746417068269,10.25945771,144.92,144.9,100.0]
[1746417069372,6.9004,144.91,144.9,100.0]
[1746417073570,3.35915771,144.92,144.9,100.0]
[1746417073780,10.25925771,144.92,144.9,100.0]
[1746417075075,6.9004,144.91,144.9,100.0]
[1746417076983,6.9002,144.92,144.9,100.0]
[1746417077180,3.35915771,144.94,144.9,100.0]
[1746417077479,6.8998,144.93,144.9,100.0]
[1746417078284,27.39915771,144.96,144.9,100.0]
[1746417078482,27.39915771,144.96,144.9,103.35915771]
[1746417078778,6.8989,144.95,144.91,6.9001]
[1746417078982,24.04,144.96,144.92,3.35915771]
[1746417079179,3.35915771,144.98,144.92,3.35915771]
[1746417079481,24.02,144.99,144.92,3.35915771]
[1746417079681,6.8979,144.97,144.93,10.9511]
[1746417080487,6.8979,144.97,144.94,6.8989]
[1746417080779,6.8972,144.98,144.94,3.35915771]
[1746417080978,6.8972,144.98,144.95,6.8982]
[1746417081178,6.8968,144.99,144.95,6.8982]
[1746417081377,27.37915771,145.0,144.94,27.37915771]
[1746417081582,27.37915771,145.0,144.94,34.27785771]
[1746417081776,6.8977,144.97,144.94,34.27785771]
[1746417082173,27.37915771,145.0,144.95,6.8985]
[1746417083183,6.8973,144.98,144.95,6.8985]
[1746417085081,30.9163,145.0,144.97,6.8976]
[1746417085292,27.35915771,145.04,144.98,3.35915771]
[1746417085986,6.896,145.01,144.98,3.35915771]
[1746417086588,6.8953,145.02,144.98,10.25595771]
[1746417087688,6.8953,145.02,144.98,6.8968]
[1746417088490,6.8953,145.02,144.99,6.8966]
[1746417090889,6.8953,145.02,144.98,6.897]
[1746417097197,6.8957,145.01,144.98,6.897]
[1746417098696,6.8957,145.01,144.97,6.8974]
[1746417099998,6.8957,145.01,144.98,6.8971]
[1746417107308,6.8957,145.01,144.97,6.8974]
[1746417107808,24.0,145.04,144.95,5.24333781]
[1746417108003,24.0,145.04,144.96,6.8978]
[1746417108412,6.8965,145.0,144.96,6.8978]
[1746417109410,7.26033781,145.07,144.93,4.052]
[1746417109605,5.24333781,145.01,144.91,24.0]
[1746417109907,3.35934839,144.96,144.91,24.0]
[1746417110311,6.8996,144.93,144.91,24.0]
[1746417111714,4.75126163,144.92,144.91,24.0]
[1746417116114,6.8996,144.93,144.91,24.0]
[1746417116412,6.8996,144.93,144.9,106.9009]
[1746417122415,6.9,144.92,144.9,100.0]
[1746417122919,4.75832633,144.91,144.9,100.0]
[1746417123621,11.65872633,144.91,144.9,100.0]
[1746417124320,4.75832633,144.91,144.9,100.0]
[1746417129726,4.75832633,144.91,144.9,106.9009]
[1746417130327,6.8991,144.94,144.9,106.9009]
[1746417130930,4.75298334,144.93,144.9,106.9009]
[1746417131427,4.75298334,144.92,144.9,106.9009]
[1746417131829,6.8991,144.94,144.9,106.9009]
[1746417132328,4.75312321,144.93,144.9,106.9009]
[1746417132824,4.75312321,144.92,144.9,106.9009]
[1746417133632,6.8991,144.94,144.9,106.9009]
[1746417134127,4.75263318,144.93,144.9,106.9009]
[1746417134729,4.75263318,144.92,144.91,6.9004]
[1746417137532,6.8991,144.94,144.91,6.9004]
[1746417140637,24.0,144.96,144.9,100.0]
[1746417140826,27.35957694,144.99,144.91,3.35957694]
[1746417141031,27.35957694,144.99,144.91,5.51357694]
[1746417141235,6.898,144.97,144.93,6.8992]
[1746417148847,6.8981,144.96,144.93,6.8992]
[1746417151849,10.25737694,144.97,144.93,6.8992]
[1746417153342,6.8982,144.96,144.93,6.8992]
[1746417155947,6.8986,144.95,144.92,30.8997]
[1746417156153,6.8986,144.95,144.92,24.0]
[1746417156154,3.35957694,144.95,144.92,24.0]
[1746417156347,3.35957694,144.95,144.9,100.0]
[1746417157252,6.8991,144.94,144.91,6.9004]
[1746417158455,10.25837694,144.95,144.91,6.9004]
[1746417160259,6.8991,144.94,144.91,6.9004]
[1746417160654,3.35957694,144.95,144.91,6.9004]
[1746417162259,6.8991,144.94,144.91,6.9004]
[1746417165470,6.8991,144.94,144.9,106.9007]
[1746417165664,6.8999,144.93,144.9,100.0]
[1746417167171,6.8999,144.93,144.9,106.9008]
[1746417171374,6.8992,144.94,144.91,6.9004]
[1746417173076,6.8988,144.95,144.92,6.8997]
[1746417173876,3.35957694,144.98,144.91,3.35957694]
[1746417174376,6.8979,144.97,144.94,6.8989]
[1746417175778,6.8981,144.96,144.94,6.8989]
[1746417176379,6.8981,144.96,144.91,3.35957694]
[1746417176380,6.8981,144.96,144.93,6.8993]
[1746417177478,23.98,144.99,144.93,27.33957694]
[1746417177683,3.35957694,145.03,144.97,3.35957694]
[1746417177978,23.98,145.02,144.97,10.25677694]
[1746417178582,6.8959,145.01,144.97,10.25677694]
[1746417179285,6.8962,145.0,144.97,10.25677694]
[1746417183688,3.35957694,145.01,144.96,10.25737694]
[1746417185089,4.77753951,145.0,144.96,10.25737694]
[1746417185282,6.8967,144.99,144.96,10.25737694]
[1746417185481,4.77753951,145.0,144.97,6.8973]
[1746417185685,30.8754,145.02,144.96,3.35957694]
[1746417186089,30.8754,145.02,144.98,6.8968]
[1746417187488,6.8958,145.01,144.98,6.8968]
[1746417190389,6.8962,145.0,144.97,30.8774]
[1746417192286,6.8959,145.01,144.98,6.897]
[1746417192489,4.77323949,144.99,144.98,6.897]
[1746417192793,6.8959,145.01,144.98,6.897]
[1746417193095,4.77292491,145.0,144.98,6.897]
[1746417193391,6.8959,145.01,144.98,6.897]
[1746417193891,4.77250735,145.0,144.98,6.897]
[1746417194386,6.8959,145.01,144.98,6.897]
[1746417199595,4.77006986,145.0,144.98,6.897]
[1746417200096,4.77006986,144.99,144.98,6.897]
[1746417202698,4.77006986,144.99,144.97,30.8774]
[1746417203097,4.77006986,144.98,144.97,30.8774]
[1746417208606,4.77006986,144.98,144.97,23.98]
[1746417208908,11.66716986,144.98,144.97,23.98]
[1746417209411,11.66716986,144.98,144.96,3.35957694]
[1746417209709,4.77006986,144.97,144.96,3.35957694]
[1746417209907,4.77006986,144.97,144.96,10.25767694]
[1746417217017,6.8958,145.01,144.98,6.8968]
[1746417218717,11.68441933,145.0,144.98,6.8968]
[1746417219117,4.78821933,144.99,144.98,6.8968]
[1746417224722,4.78821933,144.99,144.97,6.8974]
[1746417225910,4.78821933,144.98,144.97,6.8974]
[1746417229522,4.78821933,144.98,144.96,3.35957694]
[1746417229721,4.78821933,144.97,144.94,23.96]
[1746417230123,4.78821933,144.96,144.94,23.96]
[1746417230324,4.78821933,144.96,144.95,6.8983]
[1746417234131,4.78821933,144.96,144.95,10.25787694]
[1746417238637,4.78821933,144.96,144.95,110.25787694]
[1746417244639,3.35957694,145.03,144.95,103.35957694]
[1746417244845,2.0113,145.04,145.0,3.35957694]
[1746417245141,8.9057,145.04,145.01,6.8954]
[1746417245338,2.0113,145.04,145.0,3.35957694]
[1746417246246,2.0113,145.04,145.01,6.8956]
[1746417246642,6.894,145.05,145.0,3.35957694]
[1746417246844,6.8943,145.04,145.0,3.35957694]
[1746417248241,6.8943,145.04,145.01,6.8953]
[1746417251446,6.8943,145.04,145.0,10.25557694]
[1746417255749,6.8943,145.04,145.01,6.8956]
[1746417271266,6.8947,145.03,145.01,6.8956]
[1746417271558,23.96,145.06,145.01,6.8956]
[1746417272255,6.8945,145.04,145.01,6.8956]
[1746417273657,6.8925,145.08,145.05,6.8936]
[1746417273863,1.9935,145.09,145.04,3.35957694]
[1746417274356,6.8926,145.08,145.05,6.8935]
[1746417274552,3.35957694,145.07,145.03,23.94]
[1746417275670,6.8936,145.06,145.03,30.8344]
[1746417276766,10.25257694,145.07,145.03,30.8344]
[1746417277067,10.25257694,145.07,145.04,6.894]
[1746417277567,1.9935,145.09,145.04,3.35957694]
[1746417278067,8.8854,145.09,145.04,3.35957694]
[1746417279165,8.8854,145.09,145.06,6.8928]
[1746417280072,1.9935,145.09,145.07,6.8928]
[1746417281071,1.9935,145.09,145.08,6.8924]
[1746417281368,6.8911,145.11,145.08,6.8924]
[1746417281970,6.8915,145.1,145.07,6.8927]
[1746417282672,6.8919,145.09,145.06,10.25267694]
[1746417282971,6.8919,145.09,145.06,6.8931]
[1746417284971,10.25117694,145.1,145.07,6.8928]
[1746417287171,6.8919,145.09,145.07,6.8928]
[1746417288377,6.8919,145.09,145.06,6.8931]
[1746417290679,6.8919,145.09,145.07,6.8928]
[1746417292382,6.8916,145.1,145.07,6.8928]
[1746417297686,12.28167694,145.11,145.08,6.892]
[1746417298182,23.94,145.12,145.06,3.35957694]
[1746417298383,3.35957694,145.13,145.07,23.92]
[1746417298985,6.8908,145.12,145.09,6.8916]
[1746417299680,10.24967694,145.13,145.1,6.8913]
[1746417299887,10.24967694,145.13,145.08,3.35957694]
[1746417300275,10.24967694,145.13,145.11,6.8909]
[1746417300475,10.24967694,145.13,145.08,3.35957694]
[1746417301087,10.24967694,145.13,145.1,6.8912]
[1746417301686,6.8901,145.13,145.1,6.8912]
[1746417301986,1.9939,145.16,145.11,23.92]
[1746417302484,6.8892,145.15,145.12,6.8902]
[1746417303189,8.8825,145.16,145.13,6.8898]
[1746417303686,10.24787694,145.17,145.14,6.8895]
[1746417304078,27.27957694,145.19,145.12,3.35957694]
[1746417304278,3.35957694,145.19,145.12,3.35957694]
[1746417304482,10.24707694,145.19,145.12,5.45887694]
[1746417304678,1.9789,145.2,145.14,3.35957694]
[1746417304887,6.8873,145.19,145.16,6.8882]
[1746417305087,6.8873,145.19,145.14,3.35957694]
[1746417305589,6.8873,145.19,145.15,6.8887]
[1746417306388,6.8877,145.18,145.15,6.8887]
[1746417308984,6.8873,145.19,145.16,6.8883]
[1746417310392,6.8873,145.19,145.15,30.8088]
[1746417311091,3.35957694,145.19,145.15,23.92]
[1746417311290,3.35957694,145.17,145.12,27.27957694]
[1746417311890,6.889,145.16,145.12,27.27957694]
[1746417312190,6.889,145.16,145.12,34.16977694]
[1746417312392,6.889,145.15,145.12,34.16977694]
[1746417312586,6.889,145.15,145.12,23.92]
[1746417312988,3.35957694,145.15,145.09,27.27957694]
[1746417313689,6.8902,145.13,145.1,6.8913]
[1746417317490,6.8896,145.14,145.11,6.8909]
[1746417317995,4.0206,145.17,145.09,23.92]
[1746417318193,6.8903,145.13,145.1,6.8912]
[1746417319085,6.8905,145.12,145.09,23.92]
[1746417319290,4.0206,145.17,145.09,23.92]
[1746417319694,6.8908,145.12,145.09,23.92]
[1746417320097,6.8908,145.12,145.08,6.8921]
[1746417322399,6.8908,145.12,145.09,6.8919]
[1746417325000,6.8908,145.12,145.08,6.8922]
[1746417325200,6.8911,145.11,145.08,6.8922]
[1746417325806,6.8914,145.1,145.07,6.8926]
[1746417326104,23.92,145.14,145.07,6.8926]
[1746417326302,6.8912,145.11,145.08,6.8923]
[1746417326604,23.92,145.14,145.08,6.8923]
[1746417326903,6.8909,145.12,145.08,6.8923]
[1746417330103,6.8909,145.11,145.08,6.8923]
[1746417330705,6.8909,145.11,145.09,6.8919]
[1746417330899,6.8907,145.12,145.09,6.8919]
[1746417331806,6.891,145.11,145.08,6.8922]
[1746417335607,6.8914,145.1,145.08,6.8922]
[1746417335811,23.92,145.14,145.08,6.8922]
[1746417336207,6.8912,145.11,145.08,6.8922]
[1746417336909,6.8906,145.12,145.09,6.8918]
[1746417337409,23.92,145.14,145.07,4.0293]
[1746417337704,6.8902,145.13,145.1,6.8911]
[1746417338308,6.8897,145.14,145.11,6.8909]
[1746417340310,27.9406,145.17,145.12,6.8904]
[1746417340311,6.8891,145.15,145.12,6.8904]
[1746417340609,25.9192,145.17,145.1,23.92]
[1746417340610,23.92,145.17,145.1,23.92]
[1746417341414,6.8893,145.15,145.12,6.8902]
[1746417341811,23.92,145.17,145.1,23.92]
[1746417342013,6.89,145.13,145.1,23.92]
[1746417343213,6.89,145.13,145.1,30.8114]
[1746417353623,6.89,145.13,145.1,23.92]
[1746417355223,6.89,145.13,145.1,30.8114]
[1746417361431,23.92,145.17,145.1,23.92]
[1746417361633,7.22960873,145.16,145.07,27.9293]
[1746417361931,3.35186008,145.12,145.07,27.9293]
[1746417362125,3.35186008,145.14,145.07,27.9293]
[1746417362331,3.35186008,145.14,145.08,3.35186008]
[1746417362534,10.24166008,145.14,145.11,6.8909]
[1746417364238,6.89,145.13,145.1,6.8912]
[1746417373252,6.8907,145.12,145.09,6.8918]
[1746417376854,6.8911,145.11,145.08,6.8922]
[1746417377151,3.3527345,145.1,145.07,23.9]
[1746417377752,10.2444345,145.1,145.07,30.7928]
[1746417382351,6.892,145.09,145.07,23.9]
[1746417384855,6.892,145.09,145.06,6.8931]
[1746417388656,6.892,145.09,145.07,6.8928]
[1746417390259,10.2443345,145.1,145.07,6.8928]
[1746417390662,6.8916,145.1,145.07,6.8928]
[1746417397462,6.8919,145.09,145.06,6.8931]
[1746417408075,6.8924,145.08,145.06,6.8931]
[1746417408467,3.3527345,145.1,145.06,6.8931]
[1746417408773,6.8922,145.09,145.06,6.8931]
[1746417409778,6.8925,145.08,145.05,6.8936]
[1746417410473,6.8925,145.08,145.06,6.8933]
[1746417411173,6.8921,145.09,145.06,6.8933]
[1746417418173,6.8925,145.08,145.04,27.2727345]
[1746417418380,3.3527345,145.08,145.04,23.92]
[1746417418576,3.3527345,145.08,145.03,2.0998]
[1746417418876,6.893,145.07,145.04,6.8941]
[1746417419071,3.3527345,145.08,145.03,2.0998]
[1746417419472,10.2453345,145.08,145.05,6.8938]
[1746417419781,23.9,145.09,145.04,3.3527345]
[1746417419971,10.2445345,145.1,145.04,3.3527345]
[1746417421177,10.2445345,145.1,145.06,6.8929]
[1746417422477,6.892,145.09,145.06,6.8929]
[1746417423178,10.2443345,145.1,145.07,6.8927]
[1746417423381,3.3527345,145.1,145.04,27.2527345]
[1746417423681,6.8921,145.09,145.06,6.893]
[1746417424379,6.8921,145.09,145.05,6.8936]
[1746417424684,6.8924,145.08,145.05,6.8936]
[1746417425575,6.8929,145.07,145.04,30.7941]
[1746417425778,3.3527345,145.08,145.03,2.0998]
[1746417425979,3.3527345,145.06,145.01,23.9]
[1746417426178,3.3527345,145.04,145.01,23.9]
[1746417427581,2.1256,145.07,145.01,23.9]
[1746417428477,23.9,145.08,145.01,23.9]
[1746417429077,23.9,145.08,145.04,6.8941]
[1746417429281,5.2411652,145.1,145.01,23.9]
[1746417429471,23.9,145.11,145.02,2.0206]
[1746417429676,23.9,145.11,145.02,4.0484]
[1746417430282,6.8914,145.1,145.06,6.893]
[1746417431184,6.892,145.09,145.06,6.893]
[1746417432083,6.8924,145.08,145.05,6.8936]
[1746417434386,6.8921,145.09,145.06,6.8931]
[1746417435379,6.8916,145.1,145.07,6.8928]
[1746417437088,6.8919,145.09,145.06,6.8931]
[1746417441884,6.8916,145.1,145.07,6.8926]
[1746417445295,6.8911,145.11,145.04,23.9]
[1746417445495,6.8911,145.11,145.05,2.0385]
[1746417446199,6.8911,145.11,145.07,6.8924]
[1746417447498,25.9349,145.13,145.05,2.0385]
[1746417447998,2.0349,145.13,145.05,2.0385]
[1746417448603,6.8911,145.11,145.08,6.8921]
[1746417449004,2.0349,145.13,145.05,2.0385]
[1746417449302,6.8907,145.12,145.05,2.0385]
[1746417450500,6.8907,145.12,145.08,6.8919]
[1746417451502,6.891,145.11,145.08,6.8919]
[1746417452803,6.8906,145.12,145.09,6.8918]
[1746417455705,10.24218725,145.12,145.09,6.8918]
[1746417456701,10.24218725,145.12,145.1,6.8914]
[1746417457009,3.35158725,145.16,145.1,3.35158725]
[1746417457407,10.24038725,145.16,145.13,6.89]
[1746417457709,6.8888,145.16,145.13,6.89]
[1746417459907,6.8888,145.16,145.09,23.9]
[1746417459908,6.8891,145.15,145.12,6.8902]
[1746417466814,6.8887,145.16,145.13,6.8899]
[1746417471717,6.889,145.15,145.13,6.8899]
[1746417473821,6.8887,145.16,145.13,6.8899]
[1746417475820,6.8882,145.17,145.14,6.8893]
[1746417476819,6.8882,145.17,145.1,1.9539]
[1746417476820,6.8886,145.16,145.13,6.8898]
[1746417477209,29.13455758,145.18,145.1,1.9539]
[1746417478021,6.8885,145.17,145.13,6.8896]
[1746417478220,6.8885,145.17,145.1,1.9539]
[1746417478620,6.8886,145.16,145.13,6.8897]
[1746417479221,6.8886,145.16,145.14,6.8895]
[1746417479421,6.8882,145.17,145.14,6.8895]
[1746417479618,33.30955758,145.21,145.1,1.9539]
[1746417479917,33.30955758,145.21,145.13,23.88]
[1746417480118,6.8884,145.17,145.14,6.8891]
[1746417480722,6.8886,145.16,145.14,6.8891]
[1746417480916,5.23455758,145.18,145.07,4.0509]
[1746417481117,5.23455758,145.18,145.1,23.88]
[1746417481423,6.8902,145.13,145.1,30.7712]
[1746417483124,5.23455758,145.15,145.07,2.0486]
[1746417483326,5.23455758,145.15,145.06,26.0289]
[1746417483622,5.23455758,145.12,145.02,23.88]
[1746417483826,25.8975,145.11,145.02,23.88]
[1746417484022,6.8916,145.1,145.02,23.88]
[1746417484527,6.8916,145.1,145.06,6.893]
[1746417484928,6.8916,145.1,145.02,23.88]
[1746417485828,6.8916,145.1,145.03,2.0356]
[1746417486933,6.8916,145.1,145.04,2.0774]
[1746417488733,6.892,145.09,145.06,6.893]
[1746417488937,6.892,145.09,145.06,30.773]
[1746417489128,6.892,145.09,145.06,23.88]
[1746417491230,6.892,145.09,145.06,30.7733]
[1746417493232,6.892,145.09,145.06,23.88]
[1746417493533,6.8924,145.08,145.06,23.88]
[1746417495930,6.8928,145.07,145.06,23.88]
[1746417496136,25.8975,145.11,145.03,23.9]
[1746417496332,6.8933,145.07,145.03,30.7946]
[1746417496735,5.23455758,145.09,145.03,23.9]
[1746417497034,5.23455758,145.09,145.0,23.9]
[1746417497229,5.23455758,145.09,145.0,30.7958]
[1746417497430,6.8946,145.04,145.0,30.7958]
[1746417498836,5.23455758,145.06,144.96,26.0332]
[1746417499136,9.32285758,145.06,144.96,26.0332]
[1746417499337,6.8952,145.02,144.99,6.8966]
[1746417500038,6.8952,145.02,144.98,6.8969]
[1746417501433,6.8958,145.01,144.98,6.8969]
[1746417502627,6.8962,145.0,144.96,30.7976]
[1746417502830,29.13455758,145.03,144.96,23.9]
[1746417504033,6.8958,145.01,144.97,6.8974]
[1746417504433,29.13455758,145.03,144.95,100.0]
[1746417504636,29.13455758,145.03,144.98,6.8968]
[1746417504637,6.8955,145.02,144.98,6.8968]
[1746417506138,6.8957,145.01,144.98,6.8968]
[1746417507736,6.8957,145.01,144.97,6.8974]
[1746417508837,6.8962,145.0,144.97,6.8974]
[1746417509739,6.8959,145.01,144.97,6.8974]
[1746417512038,6.8962,145.0,144.97,6.8974]
[1746417513840,29.13455758,145.03,144.95,100.0]
[1746417514441,6.8972,144.98,144.95,106.8983]
[1746417515746,6.8976,144.97,144.95,100.0]
[1746417516651,6.8973,144.98,144.95,100.0]
[1746417522454,6.8973,144.98,144.95,106.8985]
[1746417531359,6.8976,144.97,144.95,100.0]
[1746417531564,3.35806136,144.97,144.95,100.0]
[1746417532770,6.8981,144.96,144.95,100.0]
[1746417533570,10.25586136,144.97,144.95,100.0]
[1746417535175,6.8981,144.96,144.95,100.0]
[1746417549785,6.8998,144.93,144.9,100.0]
[1746417550586,6.9001,144.92,144.9,100.0]
[1746417553589,6.8997,144.93,144.9,100.0]
[1746417555086,6.9004,144.91,144.9,100.0]
[1746417555690,3.35806136,144.92,144.9,100.0]
[1746417556489,10.25806136,144.92,144.9,100.0]
[1746417557288,3.35806136,144.92,144.9,100.0]
[1746417565098,3.35806136,144.92,144.9,106.9009]
[1746417565597,6.8997,144.93,144.9,106.9009]
[1746417568402,10.25726136,144.94,144.9,106.9009]
[1746417568699,3.35806136,144.94,144.92,6.9]
[1746417569002,30.8188,144.95,144.9,100.0]
[1746417569605,30.8188,144.95,144.91,6.9001]
[1746417570306,23.92,144.95,144.92,6.8999]
[1746417570805,23.92,144.95,144.91,2.1063]
[1746417571104,30.8186,144.95,144.91,2.1063]
[1746417571506,6.899,144.94,144.91,2.1063]
[1746417576397,6.8996,144.93,144.91,2.1063]
[1746417579006,23.92,144.95,144.91,2.1063]
[1746417580208,6.8994,144.94,144.91,2.1063]
[1746417581012,6.8997,144.93,144.91,2.1063]
[1746417583519,6.9,144.92,144.91,2.1063]
[1746417591022,6.8997,144.93,144.91,2.1063]
[1746417593823,6.9,144.92,144.91,2.1063]
[1746417596429,6.9,144.92,144.9,100.0]
[1746417603438,6.9004,144.91,144.9,100.0]
[1746417603739,26.0974,144.98,144.9,103.35806136]
[1746417603934,6.8972,144.98,144.94,3.35806136]
[1746417604133,24.02,145.01,144.96,3.35806136]
[1746417605038,6.8969,144.99,144.94,14.20106136]
[1746417605335,6.8969,144.99,144.94,7.30246136]
[1746417605937,6.8971,144.98,144.94,7.30246136]
[1746417606132,3.35806136,144.96,144.9,103.35806136]
[1746417606334,3.35806136,144.96,144.9,127.37806136]
[1746417606535,6.8988,144.95,144.91,6.9002]
[1746417606833,3.35806136,144.96,144.9,127.37806136]
[1746417607034,3.35806136,144.97,144.9,127.37806136]
[1746417607228,10.25576136,144.97,144.91,3.9034]
[1746417607533,3.35806136,144.97,144.91,3.9034]
[1746417607738,3.35806136,144.97,144.92,6.8997]
[1746417608138,6.8983,144.96,144.92,6.8997]
[1746417609034,3.35806136,144.97,144.91,3.9034]
[1746417609242,24.02,145.01,144.94,3.35806136]
[1746417609431,3.35806136,145.0,144.94,3.35806136]
[1746417609637,24.02,145.01,144.94,27.37806136]
[1746417609839,26.0361,145.04,144.94,29.26397346]
[1746417610335,6.895,145.03,144.99,6.8962]
[1746417611042,6.8952,145.02,144.99,6.8962]
[1746417611942,6.8949,145.03,145.0,6.8961]